bitfinex-derivatives/quotes_ETHF0:USTF0_20250606
["timestamp","ask_amount","ask_price","bid_price","bid_amount"]
[1749250169243,2.15692164,2479.8,2479.7,0.81195924]
[1749250169443,1.35103164,2479.8,2479.7,5.64695924]
[1749250170245,1.35103164,2479.8,2479.7,6.91955924]
[1749250173245,0.80584,2480.0,2479.9,0.80582]
[1749250173842,2.15795832,2480.0,2479.9,0.80582]
[1749250174145,1.35211832,2480.0,2479.9,0.80582]
[1749250174445,1.35211832,2480.0,2479.9,4.66432]
[1749250174751,0.00604924,2480.2,2479.9,5.8731]
[1749250175046,1.3521509,2480.1,2480.0,2.81281]
[1749250175241,1.3521509,2480.1,2480.0,7.64781]
[1749250176541,0.00604924,2480.2,2480.1,0.80578]
[1749250176747,1.35753361,2480.2,2480.1,2.16878]
[1749250176949,0.6965,2480.9,2480.6,0.80559]
[1749250177153,2.15715282,2480.8,2480.7,0.6586]
[1749250177347,2.15715282,2480.8,2480.7,1.46418]
[1749250177849,1.35160282,2480.8,2480.7,1.46418]
[1749250178750,1.35160282,2480.8,2480.7,4.67198]
[1749250179646,0.00604924,2481.0,2480.7,4.67198]
[1749250179647,0.00604924,2481.0,2480.9,0.80552]
[1749250179847,1.356853,2481.0,2480.9,5.63952]
[1749250180351,0.81153924,2481.0,2480.9,4.834]
[1749250181249,0.81153924,2481.0,2480.9,6.1339]
[1749250181854,0.81153924,2481.0,2480.9,6.93942]
[1749250182056,0.00604924,2481.0,2480.9,11.93942]
[1749250183259,0.80542,2481.2,2481.1,0.80545]
[1749250183454,0.8054,2481.3,2481.2,0.80539]
[1749250183753,0.8054,2481.3,2481.2,5.63939]
[1749250183952,0.8054,2481.3,2481.2,4.834]
[1749250184349,0.8054,2481.3,2481.2,5.63942]
[1749250184550,0.8054,2481.3,2481.2,4.834]
[1749250191162,0.80538,2481.4,2481.3,0.80536]
[1749250191363,0.00604924,2481.5,2481.2,4.834]
[1749250191364,0.80539,2481.3,2481.2,4.834]
[1749250192256,0.80542,2481.2,2481.1,5.4871]
[1749250192561,1.49272,2481.2,2481.1,5.4871]
[1749250192761,1.49272,2481.2,2481.1,6.29255]
[1749250193065,1.49272,2481.2,2481.1,5.4871]
[1749250193562,1.49272,2481.2,2481.1,6.29255]
[1749250197061,0.80545,2481.1,2481.0,3.21384924]
[1749250197271,0.80545,2481.1,2481.0,4.83604924]
[1749250197565,1.46685,2481.1,2481.0,4.83604924]
[1749250198270,1.46685,2481.1,2481.0,0.00604924]
[1749250198271,2.81691303,2481.1,2481.0,0.00604924]
[1749250198462,4.08591303,2481.1,2481.0,0.00604924]
[1749250199975,4.08591303,2481.1,2481.0,0.81153924]
[1749250200675,4.08591303,2481.1,2481.0,0.00604924]
[1749250201076,4.08591303,2481.1,2481.0,0.81153924]
[1749250203776,2.01146303,2481.1,2481.0,0.81153924]
[1749250204184,1.35006303,2481.1,2481.0,0.81153924]
[1749250204385,1.35006303,2481.1,2481.0,2.76533924]
[1749250204680,1.35006303,2481.1,2481.0,5.97313924]
[1749250204875,2.15551303,2481.1,2481.0,4.01933924]
[1749250205082,2.15551303,2481.1,2481.0,0.00604924]
[1749250205275,2.15551303,2481.1,2481.0,0.81153924]
[1749250205983,1.35006303,2481.1,2481.0,0.81153924]
[1749250206282,2.15551303,2481.1,2481.0,0.81153924]
[1749250206579,2.79461303,2481.1,2481.0,0.81153924]
[1749250208077,1.98916303,2481.1,2481.0,0.00604924]
[1749250208283,6.00241303,2481.1,2481.0,0.00604924]
[1749250209086,8.02761303,2481.1,2481.0,0.00604924]
[1749250210480,6.69991303,2481.1,2481.0,0.00604924]
[1749250210785,0.80565,2480.5,2480.4,4.83]
[1749250210984,0.80568,2480.4,2480.3,8.0378]
[1749250211279,2.82864303,2480.4,2480.3,8.84351]
[1749250211580,2.82864303,2480.4,2480.3,5.63571]
[1749250214687,0.80575,2480.2,2480.1,0.00604924]
[1749250215186,2.15581303,2480.2,2480.1,0.81182924]
[1749250215778,1.35006303,2480.2,2480.1,5.64282924]
[1749250215984,1.48309,2480.7,2480.6,0.80562]
[1749250216286,2.83496218,2480.7,2480.6,0.80562]
[1749250216487,2.02937218,2480.7,2480.6,0.80562]
[1749250216687,1.35187218,2480.7,2480.6,0.80562]
[1749250217085,1.35187218,2480.7,2480.6,4.01342]
[1749250217387,0.80548,2481.1,2480.6,3.2078]
[1749250217583,0.80544,2481.2,2481.1,0.80545]
[1749250217778,2.15758238,2481.2,2481.1,0.80545]
[1749250217985,1.35214238,2481.2,2481.1,0.80545]
[1749250218384,1.35214238,2481.2,2481.1,2.83515]
[1749250218983,2.15756238,2481.2,2481.1,2.83515]
[1749250219383,2.15756238,2481.2,2481.1,0.6918]
[1749250219590,2.15760821,2481.2,2481.1,0.6918]
[1749250219984,0.80545,2481.1,2481.0,0.6661]
[1749250220183,1.35218821,2481.1,2481.0,1.47159]
[1749250220681,2.15763821,2481.1,2481.0,2.80949]
[1749250221894,0.80549,2481.0,2480.9,5.63649]
[1749250222089,2.15767821,2481.0,2480.9,5.63649]
[1749250222587,0.80558,2480.7,2480.6,10.0269]
[1749250222885,0.80557,2480.8,2480.7,0.80559]
[1749250223085,2.1581448,2480.8,2480.7,0.80556]
[1749250223281,2.1581448,2480.8,2480.7,2.15066]
[1749250223687,1.3525848,2480.8,2480.7,2.15066]
[1749250224495,0.6465,2481.3,2481.1,0.80544]
[1749250224793,1.35381177,2481.2,2481.1,0.80544]
[1749250224989,2.15926803,2481.2,2481.1,0.80544]
[1749250225391,1.35382803,2481.2,2481.0,6.1075]
[1749250225692,0.80544,2481.2,2481.1,1.2655]
[1749250225993,2.15936299,2481.2,2481.1,1.2655]
[1749250226294,2.15936299,2481.2,2481.1,2.07095]
[1749250227093,1.35392299,2481.2,2481.1,2.07095]
[1749250228796,0.81138924,2481.5,2481.4,0.80536]
[1749250228994,2.16512781,2481.5,2481.4,8.85416]
[1749250229888,1.35978781,2481.5,2481.4,8.85416]
[1749250231497,1.2862,2482.2,2481.9,0.80517]
[1749250231692,0.80513,2482.1,2482.0,0.656]
[1749250233806,0.80519,2481.9,2481.8,6.77404924]
[1749250234294,0.80519,2481.9,2481.8,7.57927924]
[1749250234499,0.80519,2481.9,2481.8,4.84704924]
[1749250235399,0.80519,2481.9,2481.8,5.65227924]
[1749250235702,0.80519,2481.9,2481.8,4.84704924]
[1749250236401,0.80519,2481.9,2481.8,5.65227924]
[1749250236802,0.80518,2482.0,2481.9,0.80517]
[1749250237100,1.2862,2482.2,2482.0,0.80514]
[1749250237101,0.80516,2482.1,2482.0,0.80514]
[1749250237807,0.80516,2482.0,2481.9,2.82008]
[1749250238501,0.80516,2482.0,2481.9,3.48838]
[1749250239004,0.80515,2482.1,2482.0,0.80513]
[1749250239203,0.80515,2482.1,2482.0,2.09903]
[1749250240601,0.00604924,2482.3,2482.2,0.8051]
[1749250240805,0.00604924,2482.3,2482.2,5.6451]
[1749250241000,3.2078,2483.0,2482.3,2.01267]
[1749250241301,0.80495,2482.7,2482.6,0.80495]
[1749250241604,0.80493,2482.8,2482.7,0.80492]
[1749250241805,4.67436,2483.0,2482.9,0.80487]
[1749250241996,3.8695,2483.0,2482.7,0.6491]
[1749250242195,4.67435,2483.0,2482.9,0.80487]
[1749250242407,3.8695,2483.0,2482.9,0.80487]
[1749250242593,0.00604924,2483.2,2482.9,3.2078]
[1749250242794,0.81082924,2483.2,2483.1,0.80481]
[1749250243096,0.00604924,2483.2,2483.0,5.64381]
[1749250243296,0.00604924,2483.2,2483.0,4.839]
[1749250243297,0.80481,2483.1,2483.0,4.839]
[1749250244106,0.80481,2483.1,2483.0,5.64384]
[1749250244307,0.81083924,2483.2,2483.1,0.80481]
[1749250244808,0.80481,2483.1,2483.0,6.98713]
[1749250245110,0.80481,2483.1,2483.0,6.1823]
[1749250247208,0.80481,2483.1,2483.0,6.98714]
[1749250247705,0.00604924,2483.2,2483.1,0.80481]
[1749250247906,0.00604924,2483.2,2483.1,1.45151]
[1749250249605,0.07738275,2483.2,2483.1,1.45151]
[1749250251013,0.80472,2483.4,2483.3,0.80474]
[1749250251205,0.6464,2483.5,2483.4,0.80471]
[1749250251206,1.45108,2483.5,2483.4,0.80471]
[1749250251407,1.45108,2483.5,2483.4,5.64271]
[1749250251703,0.686,2483.8,2483.5,0.80466]
[1749250251903,0.80467,2483.6,2483.5,5.1653]
[1749250252111,0.80467,2483.6,2483.5,2.76218]
[1749250252304,0.80467,2483.6,2483.5,1.9575]
[1749250254107,0.80467,2483.6,2483.5,0.6386]
[1749250254707,1.33934924,2483.8,2483.5,0.6386]
[1749250254914,0.00604924,2483.8,2483.7,0.80461]
[1749250255114,0.81062924,2483.8,2483.7,0.80461]
[1749250255414,0.80461,2483.7,2483.6,2.07462]
[1749250255714,0.81064924,2483.8,2483.7,0.80461]
[1749250256210,0.81062924,2483.8,2483.7,0.80461]
[1749250256508,0.00604924,2483.8,2483.7,0.80461]
[1749250256715,0.81062924,2483.8,2483.7,0.80461]
[1749250257211,0.00604924,2483.8,2483.7,0.80461]
[1749250258220,0.81062924,2483.8,2483.7,0.80461]
[1749250258517,0.00604924,2483.8,2483.7,0.80461]
[1749250258724,0.81062924,2483.8,2483.7,0.80461]
[1749250259024,0.00604924,2483.8,2483.7,0.80461]
[1749250259416,0.81062924,2483.8,2483.7,0.80461]
[1749250260022,0.00604924,2483.8,2483.7,0.80461]
[1749250261021,0.00604924,2483.8,2483.7,1.50201]
[1749250261620,0.81062924,2483.8,2483.7,1.50201]
[1749250261924,0.00604924,2483.8,2483.7,0.80461]
[1749250264919,0.07738275,2483.8,2483.7,0.80461]
[1749250265624,1.42223308,2483.8,2483.7,0.80461]
[1749250265824,0.07738275,2483.8,2483.7,0.80461]
[1749250266530,1.42286528,2483.8,2483.7,0.80461]
[1749250268931,0.6753,2484.0,2483.9,0.80455]
[1749250269135,0.6753,2484.0,2483.9,5.62855]
[1749250269525,0.6753,2484.0,2483.9,7.62045]
[1749250270425,0.00389085,2484.2,2484.1,0.80448]
[1749250271033,0.80834085,2484.2,2484.1,0.80448]
[1749250271231,0.00389085,2484.2,2484.1,0.80448]
[1749250271428,0.80834085,2484.2,2484.1,0.80448]
[1749250272630,0.00389085,2484.2,2484.1,0.80448]
[1749250273037,0.00389085,2484.2,2484.1,4.01228]
[1749250273333,0.00389085,2484.2,2484.1,5.35528]
[1749250273729,3.2078,2484.5,2484.4,0.80439]
[1749250273926,3.2078,2484.5,2484.4,5.62739]
[1749250274522,0.6801,2485.0,2484.7,0.80428]
[1749250274721,2.09472,2484.9,2484.8,4.823]
[1749250275133,0.80422,2484.9,2484.8,5.62726]
[1749250275332,0.6801,2485.0,2484.9,0.80422]
[1749250275533,1.48429,2485.0,2484.9,0.80422]
[1749250275933,0.6801,2485.0,2484.9,0.80422]
[1749250276133,4.00094332,2485.2,2484.8,4.823]
[1749250276330,0.80414,2485.2,2485.0,0.80417]
[1749250276530,0.80419,2485.0,2484.9,0.80421]
[1749250276836,3.83370332,2485.3,2484.8,6.1655]
[1749250276837,0.80417,2485.1,2485.0,0.80419]
[1749250277936,1.44103,2485.3,2485.2,0.80413]
[1749250278130,0.6369,2485.3,2484.8,4.823]
[1749250278443,2.15024,2485.2,2485.1,0.80416]
[1749250279036,0.80418,2485.1,2485.0,0.80418]
[1749250279338,0.8042,2485.0,2484.9,0.8042]
[1749250279533,1.3461,2485.2,2484.9,4.823]
[1749250279730,0.80419,2485.0,2484.9,4.823]
[1749250279926,0.80417,2485.1,2485.0,0.80417]
[1749250280736,0.07133351,2485.2,2485.1,0.80416]
[1749250280938,1.38640779,2485.2,2485.0,0.80418]
[1749250281141,1.31507428,2485.1,2485.0,0.80418]
[1749250282143,2.11923428,2485.1,2485.0,0.80418]
[1749250282343,3.45193428,2485.1,2485.0,0.80418]
[1749250283743,0.80419,2485.0,2484.9,5.62721]
[1749250283939,2.11926428,2485.0,2484.9,5.62721]
[1749250284546,1.31507428,2485.0,2484.9,5.62721]
[1749250286936,2.11926428,2485.0,2484.9,5.62721]
[1749250287839,2.11926428,2485.0,2484.6,0.00603695]
[1749250287840,6.31507428,2485.0,2484.6,0.00603695]
[1749250288036,0.80429,2484.7,2484.6,0.00603695]
[1749250288239,2.11936428,2484.7,2484.6,0.00603695]
[1749250288440,3.38036428,2484.7,2484.6,0.00603695]
[1749250290843,3.38036428,2484.7,2484.6,0.81036695]
[1749250292151,3.38036428,2484.7,2484.6,0.00603695]
[1749250293949,8.38036428,2484.7,2484.6,0.00603695]
[1749250294450,3.38036428,2484.7,2484.6,0.00603695]
[1749250296248,3.45169779,2484.7,2484.6,0.00603695]
[1749250299543,8.45169779,2484.7,2484.6,0.00603695]
[1749250299750,2.01099,2484.4,2483.9,1.3228]
[1749250300049,2.01099,2484.4,2483.7,1.2639]
[1749250300050,0.80457,2483.9,2483.8,5.62558]
[1749250300258,2.11964428,2483.9,2483.8,5.62558]
[1749250301043,1.31507428,2483.9,2483.8,5.62558]
[1749250301650,1.95917428,2483.9,2483.8,5.62558]
[1749250302543,2.76372428,2483.9,2483.8,5.62558]
[1749250305450,2.76372428,2483.9,2483.8,4.821]
[1749250305646,2.76372428,2483.9,2483.8,5.62558]
[1749250305949,2.76372428,2483.9,2483.8,4.821]
[1749250306152,2.76372428,2483.9,2483.8,5.62558]
[1749250308456,1.95917428,2483.9,2483.8,5.62558]
[1749250308948,0.81049596,2484.1,2484.0,0.80451]
[1749250309151,2.12871179,2484.1,2484.0,0.80451]
[1749250312055,1.32421179,2484.1,2484.0,0.80451]
[1749250313457,2.12869179,2484.1,2484.0,0.80451]
[1749250317560,0.80451,2484.0,2483.9,2.12802]
[1749250317754,2.12272583,2484.0,2483.9,2.12802]
[1749250322061,2.12272583,2484.0,2483.9,1.3235]
[1749250322265,0.80458,2483.8,2483.7,0.6883]
[1749250322455,2.12279583,2483.8,2483.7,0.6883]
[1749250322759,2.12279583,2483.8,2483.7,1.49291]
[1749250322963,2.12279583,2483.8,2483.7,2.77391]
[1749250323360,2.12279583,2483.8,2483.7,1.9693]
[1749250323562,2.12279583,2483.8,2483.7,2.77391]
[1749250324463,2.12279583,2483.8,2483.7,1.9693]
[1749250324765,2.12279583,2483.8,2483.7,7.59391]
[1749250325057,0.80461,2483.7,2483.6,0.00603695]
[1749250325250,2.78572583,2483.7,2483.6,0.00603695]
[1749250326263,4.10812583,2483.7,2483.6,0.00603695]
[1749250328362,4.10812583,2483.7,2483.6,0.00105816]
[1749250330967,2.78572583,2483.7,2483.6,0.00105816]
[1749250331156,1.31821583,2483.7,2483.6,4.01349816]
[1749250331361,2.12282583,2483.7,2483.6,4.01349816]
[1749250331560,2.12282583,2483.7,2483.6,6.73699816]
[1749250331766,1.31821583,2483.7,2483.6,6.73699816]
[1749250340175,0.80458,2483.8,2483.7,0.80461]
[1749250340474,0.80458,2483.8,2483.7,2.07751]
[1749250340875,2.12301743,2483.8,2483.7,2.07751]
[1749250341379,1.31843743,2483.8,2483.7,2.07751]
[1749250341674,2.12302056,2484.0,2483.9,0.80455]
[1749250341872,2.12306428,2484.0,2483.9,0.80455]
[1749250343973,2.12306428,2484.0,2483.9,5.62455]
[1749250344977,2.12306428,2484.0,2483.9,4.82]
[1749250345278,2.12306428,2484.0,2483.9,5.62455]
[1749250348680,1.31852428,2484.0,2483.9,5.62455]
[1749250350379,1.31852428,2484.0,2483.9,8.83235]
[1749250354087,1.38985779,2484.0,2483.9,8.83235]
[1749250366792,0.00599596,2484.1,2484.0,0.80452]
[1749250366989,0.00599596,2484.1,2484.0,2.72382]
[1749250368387,0.81047596,2484.1,2484.0,2.72382]
[1749250368593,0.00599596,2484.1,2484.0,2.72382]
[1749250369294,0.07732947,2484.1,2484.0,2.72382]
[1749250376994,0.07732947,2484.1,2484.0,1.43782]
[1749250377398,0.07732947,2484.1,2484.0,0.80452]
[1749250377591,0.07732947,2484.1,2484.0,5.61652]
[1749250378898,1.38493578,2484.1,2484.0,5.61652]
[1749250381294,6.40460332,2484.9,2484.0,9.812]
[1749250381497,0.6662,2484.8,2484.7,0.80429]
[1749250381697,2.0599,2485.2,2485.1,0.80416]
[1749250381898,2.7261,2485.2,2485.1,0.50243826]
[1749250382202,1.3465,2485.2,2485.1,0.50243826]
[1749250383003,0.6662,2485.2,2485.1,5.31443826]
[1749250384708,0.73753351,2485.2,2485.1,5.31443826]
[1749250387103,0.73753351,2485.2,2484.9,4.59003695]
[1749250387104,0.73753351,2485.2,2484.9,3.21383695]
[1749250387308,0.73753351,2485.2,2484.9,4.81703695]
[1749250387503,1.54167351,2485.2,2485.1,0.80416]
[1749250387704,0.80416,2485.1,2485.0,0.80417]
[1749250387899,1.2664,2485.1,2485.0,0.80417]
[1749250390208,0.73753351,2485.2,2485.1,0.80416]
[1749250391903,1.54166351,2485.2,2485.1,0.80416]
[1749250392103,0.73753351,2485.2,2485.1,0.80416]
[1749250392306,1.54166351,2485.2,2485.1,0.80416]
[1749250392511,0.73753351,2485.2,2485.1,0.80416]
[1749250393004,1.54166351,2485.2,2485.1,0.80416]
[1749250393399,2.81964533,2485.2,2485.1,0.80416]
[1749250396709,2.01551533,2485.2,2485.1,0.80416]
[1749250398008,0.07133351,2485.2,2485.1,0.80416]
[1749250398516,0.07133351,2485.2,2485.1,1.45056]
[1749250403811,0.07133351,2485.2,2485.1,5.61416]
[1749250404011,0.07133351,2485.2,2485.0,0.80416]
[1749250404217,0.80418,2485.1,2485.0,5.61416]
[1749250405918,0.80418,2485.1,2485.0,4.81]
[1749250406107,2.08334553,2485.1,2485.0,5.6142]
[1749250406305,3.44974553,2485.1,2485.0,4.81]
[1749250407109,3.44974553,2485.1,2485.0,5.61419]
[1749250408017,3.44974553,2485.1,2485.0,4.81]
[1749250408314,3.44974553,2485.1,2484.9,0.81024695]
[1749250408521,2.08336553,2485.0,2484.9,0.00603695]
[1749250409023,8.34406553,2485.0,2484.9,0.00603695]
[1749250409813,1.27916553,2485.0,2484.9,0.81025695]
[1749250410113,2.08335553,2485.0,2484.9,0.81025695]
[1749250411619,2.08335553,2485.0,2484.9,0.00603695]
[1749250412521,2.08335553,2485.0,2484.9,0.81025695]
[1749250413422,2.08335553,2485.0,2484.9,0.00603695]
[1749250413928,2.08335553,2485.0,2484.9,0.81025695]
[1749250414824,2.08335553,2485.0,2484.9,0.00603695]
[1749250415826,2.08335553,2485.0,2484.9,0.81026695]
[1749250416027,2.15468904,2485.0,2484.9,0.81026695]
[1749250416324,2.15468904,2485.0,2484.9,0.00603695]
[1749250418228,2.15468904,2485.0,2484.9,0.81026695]
[1749250418727,2.15468904,2485.0,2484.9,0.00603695]
[1749250420030,2.15468904,2485.0,2484.9,0.81026695]
[1749250420831,2.15468904,2485.0,2484.9,0.00603695]
[1749250422331,2.15468904,2485.0,2484.9,0.81025695]
[1749250422828,1.35049904,2485.0,2484.9,0.81025695]
[1749250423025,1.35049904,2485.0,2484.9,2.87295695]
[1749250423230,1.35049904,2485.0,2484.9,3.54615695]
[1749250424333,2.15468904,2485.0,2484.9,3.54615695]
[1749250424631,1.35049904,2485.0,2484.9,3.54615695]
[1749250429136,2.15468904,2485.0,2484.9,3.54615695]
[1749250429634,1.35049904,2485.0,2484.9,3.54615695]
[1749250430735,2.15468904,2485.0,2484.9,3.54615695]
[1749250431534,2.15309052,2485.0,2484.9,3.54615695]
[1749250432739,2.15309052,2485.0,2484.9,0.00603695]
[1749250432936,3.45529052,2485.0,2484.9,0.00603695]
[1749250433140,0.80426,2484.8,2484.7,4.805]
[1749250433337,2.08182701,2484.8,2484.7,4.805]
[1749250434241,0.80429,2484.7,2484.6,5.60931]
[1749250434441,2.08185701,2484.7,2484.6,5.60931]
[1749250435443,2.08185701,2484.7,2484.5,9.46406695]
[1749250435444,0.80432,2484.6,2484.5,9.46406695]
[1749250435739,2.08188701,2484.6,2484.5,6.25626695]
[1749250438552,2.08188701,2484.6,2484.5,0.64693695]
[1749250438753,2.08188701,2484.6,2484.5,5.44793695]
[1749250440053,2.08188701,2484.6,2484.5,0.64693695]
[1749250440255,2.08188701,2484.6,2484.5,5.44793695]
[1749250440458,2.08188701,2484.6,2484.5,6.25228695]
[1749250440755,2.08188701,2484.6,2484.5,1.45128695]
[1749250440955,2.08265189,2484.6,2484.5,6.25228695]
[1749250443257,1.27833189,2484.6,2484.5,6.25228695]
[1749250443451,2.08265189,2484.6,2484.5,6.25228695]
[1749250443850,1.27833189,2484.6,2484.5,6.25228695]
[1749250445158,0.80432,2484.7,2484.6,0.80432]
[1749250445356,2.08253059,2484.7,2484.6,0.80432]
[1749250445756,0.80432,2484.6,2484.5,6.25226695]
[1749250445962,2.08253059,2484.6,2484.5,6.25228695]
[1749250446453,2.1538641,2484.6,2484.5,6.25228695]
[1749250449256,1.3495441,2484.6,2484.5,6.25228695]
[1749250449653,2.1538641,2484.6,2484.5,6.25228695]
[1749250451160,1.3495441,2484.6,2484.5,6.25228695]
[1749250452657,2.1538641,2484.6,2484.5,6.25228695]
[1749250453258,1.3495441,2484.6,2484.5,6.25228695]
[1749250453661,2.1538741,2484.6,2484.5,6.25228695]
[1749250455255,55.9232541,2484.6,2484.5,0.00603695]
[1749250455560,109.8181841,2484.6,2484.5,0.00603695]
[1749250456157,109.81768492,2484.6,2484.5,0.00603695]
[1749250459059,109.81768492,2484.6,2484.5,0.81038695]
[1749250459862,109.01335492,2484.6,2484.5,0.81038695]
[1749250460064,109.01335492,2484.6,2484.5,1.46178695]
[1749250460365,109.81767492,2484.6,2484.5,1.46178695]
[1749250461454,109.01335492,2484.6,2484.5,2.15358695]
[1749250462966,109.81768492,2484.6,2484.5,2.15358695]
[1749250463960,109.01335492,2484.6,2484.5,2.15358695]
[1749250464369,109.01335492,2484.6,2484.5,5.36138695]
[1749250472872,109.01335492,2484.6,2484.5,10.15638695]
[1749250478071,109.01449371,2484.6,2484.5,10.15638695]
[1749250478476,109.01449371,2484.6,2484.5,6.94858695]
[1749250479177,109.01449371,2484.6,2484.5,8.27188695]
[1749250483578,109.03154624,2484.6,2484.5,8.27188695]
[1749250485984,107.73564351,2484.6,2484.5,8.27188695]
[1749250486188,107.72960656,2484.6,2484.5,8.27188695]
[1749250486778,105.72960656,2484.6,2484.5,8.27188695]
[1749250487280,105.80094007,2484.6,2484.5,8.27188695]
[1749250488985,103.80094007,2484.6,2484.5,8.27188695]
[1749250489687,102.17044007,2484.6,2484.5,8.27188695]
[1749250490180,101.80094007,2484.6,2484.5,8.27188695]
[1749250491186,100.17044007,2484.6,2484.5,8.27188695]
[1749250498491,100.17044007,2484.6,2484.5,26.74288695]
[1749250499092,100.17044007,2484.6,2484.5,24.07638695]
[1749250500402,100.17044007,2484.6,2484.5,24.07538695]
[1749250500700,100.17044007,2484.6,2484.5,0.81038695]
[1749250500896,102.26746818,2484.6,2484.5,4.79503695]
[1749250501098,101.46314818,2484.6,2484.5,5.59938695]
[1749250501496,102.72684818,2484.6,2484.5,5.59938695]
[1749250505905,101.46314818,2484.6,2484.5,5.59938695]
[1749250506113,100.17044007,2484.6,2484.5,0.81038695]
[1749250506303,100.17044007,2484.6,2484.5,24.06838695]
[1749250507000,100.17044007,2484.6,2484.5,0.81038695]
[1749250507201,101.46241926,2484.6,2484.5,0.81038695]
[1749250507401,101.46241926,2484.6,2484.5,5.59938695]
[1749250508608,101.46241926,2484.6,2484.5,4.79503695]
[1749250508609,102.26674926,2484.6,2484.5,4.79503695]
[1749250508801,102.26708201,2484.6,2484.5,4.79503695]
[1749250509304,102.26708201,2484.6,2484.5,5.59939695]
[1749250509609,101.46275201,2484.6,2484.5,5.59939695]
[1749250510202,100.17044007,2484.6,2484.5,5.59939695]
[1749250510403,101.46264251,2484.6,2484.5,5.59939695]
[1749250510612,102.26696251,2484.6,2484.5,5.59939695]
[1749250510807,101.46264251,2484.6,2484.5,5.59939695]
[1749250511415,102.72534251,2484.6,2484.5,5.59939695]
[1749250512417,103.52966251,2484.6,2484.5,5.59939695]
[1749250512617,102.72534251,2484.6,2484.5,5.59939695]
[1749250520623,103.52967251,2484.6,2484.5,5.59939695]
[1749250520815,103.52967251,2484.6,2484.5,4.79603695]
[1749250521419,121.99667251,2484.6,2484.5,0.00603695]
[1749250521621,121.99667251,2484.6,2484.5,0.81038695]
[1749250522925,103.52967251,2484.6,2484.5,0.81038695]
[1749250523124,126.99567251,2484.6,2484.5,0.00603695]
[1749250523422,121.99567251,2484.6,2484.5,0.81039695]
[1749250523716,126.99567251,2484.6,2484.5,0.00603695]
[1749250523927,0.80444,2484.3,2484.2,0.80442]
[1749250524114,2.09664244,2484.3,2484.2,5.59442]
[1749250524613,4.10374244,2484.3,2484.2,5.59442]
[1749250525924,3.29930244,2484.3,2484.2,5.59442]
[1749250526322,4.10372244,2484.3,2484.2,5.59442]
[1749250527824,2.76822244,2484.3,2484.2,5.59442]
[1749250528025,1.96380244,2484.3,2484.2,5.59442]
[1749250528225,2.76822244,2484.3,2484.2,5.59442]
[1749250529526,2.76822244,2484.3,2484.2,0.80442]
[1749250530729,0.80445,2484.2,2484.1,3.2078]
[1749250530921,2.77595244,2484.2,2484.1,3.2078]
[1749250531326,4.04745244,2484.2,2484.1,3.2078]
[1749250534425,0.80448,2484.1,2484.0,0.00603695]
[1749250534631,25.16768244,2484.1,2484.0,0.00603695]
[1749250534828,30.16768244,2484.1,2484.0,0.00603695]
[1749250538931,28.76948244,2484.1,2484.0,0.00603695]
[1749250539931,23.76948244,2484.1,2484.0,0.00603695]
[1749250540224,5.30448244,2484.1,2484.0,0.00603695]
[1749250540429,2.09668244,2484.1,2484.0,0.00603695]
[1749250540731,1.29220244,2484.1,2484.0,2.11554695]
[1749250541028,0.07133351,2484.2,2484.1,0.80448]
[1749250541234,0.07133351,2484.2,2484.1,7.52758]
[1749250544331,1.35351232,2484.2,2484.1,7.52758]
[1749250547127,0.07133351,2484.2,2484.1,7.52758]
[1749250550036,0.07133351,2484.2,2484.1,10.73538]
[1749250553335,0.07133351,2484.2,2484.1,11.40888]
[1749250554836,0.07133351,2484.2,2484.1,6.62388]
[1749250555036,0.07133351,2484.2,2484.1,11.40888]
[1749250555338,0.87578351,2484.2,2484.1,11.40888]
[1749250555836,0.07133351,2484.2,2484.1,11.40888]
[1749250556431,0.87578351,2484.2,2484.1,5.8194]
[1749250556635,0.87578351,2484.2,2484.1,11.40888]
[1749250556835,2.15754094,2484.2,2484.1,11.40888]
[1749250557536,1.35309094,2484.2,2484.1,11.40888]
[1749250558433,0.07133351,2484.2,2484.1,11.40888]
[1749250558637,1.35335353,2484.2,2484.1,11.40888]
[1749250559237,0.07133351,2484.2,2484.1,11.40888]
[1749250569752,0.07133351,2484.2,2484.1,11.40288]
[1749250569948,1.35343643,2484.2,2484.1,11.40288]
[1749250575454,47.55761299,2484.2,2484.1,11.40288]
[1749250575654,101.45254299,2484.2,2484.1,11.40288]
[1749250577956,101.45283303,2484.2,2484.1,11.40288]
[1749250581556,88.09273472,2484.2,2484.1,16.40288]
[1749250581749,70.79781285,2484.2,2484.1,16.40288]
[1749250581953,63.07330086,2484.2,2484.1,16.40288]
[1749250582158,57.95255887,2484.2,2484.1,16.40288]
[1749250582353,49.56622688,2484.2,2484.1,16.40288]
[1749250582558,42.97674641,2484.2,2484.1,16.40288]
[1749250582761,38.96522442,2484.2,2484.1,16.40288]
[1749250582962,34.57508243,2484.2,2484.1,16.40288]
[1749250583257,28.21616845,2484.2,2484.1,16.40288]
[1749250583468,19.67487447,2484.2,2484.1,16.40288]
[1749250583757,15.68345248,2484.2,2484.1,16.40288]
[1749250583961,9.6968985,2484.2,2484.1,16.40288]
[1749250584164,0.6655,2485.2,2485.1,0.80416]
[1749250584356,1.93802319,2485.2,2485.1,5.58316]
[1749250586167,3.25352319,2485.2,2485.1,5.58316]
[1749250587769,1.981,2485.2,2485.1,5.58316]
[1749250588062,3.25253103,2485.2,2485.1,5.58316]
[1749250588766,1.981,2485.2,2485.1,5.58316]
[1749250589167,3.25282554,2485.2,2485.1,5.58316]
[1749250589573,1.981,2485.2,2485.1,5.58316]
[1749250591168,3.25269812,2485.2,2484.9,3.2078]
[1749250591365,0.80424,2484.9,2484.8,5.58222]
[1749250591670,0.80432,2484.6,2484.5,5.58234]
[1749250591870,2.0758365,2484.6,2484.5,0.80434]
[1749250592674,1.2715165,2484.6,2484.5,0.80434]
[1749250592871,2.6009165,2484.6,2484.5,0.80434]
[1749250594567,3.4052365,2484.6,2484.5,0.80434]
[1749250594769,3.47657001,2484.6,2484.5,0.80434]
[1749250595571,0.80435,2484.5,2484.4,4.778]
[1749250595868,2.18765,2484.5,2484.4,4.778]
[1749250596272,2.18765,2484.5,2484.4,5.58239]
[1749250596468,2.18765,2484.5,2484.4,4.778]
[1749250597770,2.18765,2484.5,2484.4,5.58239]
[1749250598670,2.18765,2484.5,2484.4,4.778]
[1749250599071,2.18765,2484.5,2484.4,5.58239]